bitfinex-derivatives/quotes_SOLF0:USTF0_20250522
["timestamp","ask_amount","ask_price","bid_price","bid_amount"]
[1747880571790,5.7477,173.94,173.92,0.03792712]
[1747880572085,0.04166256,173.96,173.92,0.03792712]
[1747880572989,134.06866256,173.96,173.92,0.03792712]
[1747880573191,128.32166256,173.96,173.92,0.03792712]
[1747880574596,5.7472,173.95,173.92,0.03792712]
[1747880574995,128.32166256,173.96,173.92,0.03792712]
[1747880575195,5.7477,173.93,173.92,0.03792712]
[1747880575794,5.7477,173.94,173.92,0.03792712]
[1747880576390,5.7472,173.95,173.92,0.03792712]
[1747880576995,5.7474,173.94,173.92,0.03792712]
[1747880577999,5.7472,173.95,173.92,0.03792712]
[1747880579403,128.32166256,173.96,173.92,0.03792712]
[1747880579404,5.7475,173.94,173.92,0.03792712]
[1747880579601,0.04166256,173.96,173.92,5.78572712]
[1747880579901,0.04166256,173.96,173.92,0.03792712]
[1747880581095,5.7476,173.94,173.92,0.03792712]
[1747880581401,128.08,173.95,173.92,0.03792712]
[1747880582394,128.08,173.95,173.82,128.08]
[1747880582704,5.7493,173.89,173.83,5.751]
[1747880582903,133.8293,173.89,173.82,128.08]
[1747880583109,128.08,173.89,173.78,631.6473666]
[1747880583301,5.7497,173.88,173.81,5.7516]
[1747880583501,0.04272852,173.86,173.83,0.04395265]
[1747880584607,0.04272852,173.86,173.83,5.79495265]
[1747880584902,0.04272852,173.86,173.83,0.04395265]
[1747880585612,0.04272852,173.86,173.84,5.7505]
[1747880586100,0.04272852,173.86,173.83,0.04395265]
[1747880586700,0.04272852,173.86,173.84,6.7673666]
[1747880586904,128.1,173.93,173.84,6.7673666]
[1747880587106,128.1,173.93,173.81,6.7673666]
[1747880587306,5.7482,173.92,173.85,5.7501]
[1747880587501,5.7482,173.92,173.81,6.7673666]
[1747880587807,0.03686115,173.88,173.85,0.04061818]
[1747880588709,0.03686115,173.88,173.87,5.7497]
[1747880595221,128.1,173.93,173.92,5.7481]
[1747880595420,128.12,173.97,173.87,6.7673666]
[1747880595720,128.12,173.97,173.93,5.7477]
[1747880596112,128.12,173.97,173.93,5.78820345]
[1747880596921,128.12,173.97,173.93,0.04050345]
[1747880597228,133.8664,173.97,173.93,0.04050345]
[1747880598030,128.12,173.97,173.93,0.04050345]
[1747880598528,128.12,173.97,173.94,1.43755272]
[1747880599033,128.12,173.97,173.93,0.04050345]
[1747880600632,128.12,173.97,173.94,1.43750001]
[1747880600833,133.8665,173.97,173.94,1.43750001]
[1747880601033,133.8665,173.97,173.93,0.04050345]
[1747880603434,128.12,173.97,173.93,0.04050345]
[1747880604635,133.8664,173.97,173.93,0.04050345]
[1747880604937,128.12,173.97,173.93,0.04050345]
[1747880605741,128.12,173.97,173.94,1.4375072]
[1747880606438,128.12,173.97,173.93,0.04050345]
[1747880606632,133.8665,173.97,173.93,0.04050345]
[1747880606833,128.12,173.97,173.93,0.04050345]
[1747880607235,5.7479,173.93,173.88,5.7493]
[1747880607436,127.86,173.92,173.78,496.8]
[1747880607733,5.7501,173.86,173.79,127.86]
[1747880607941,133.6101,173.86,173.76,6.7673666]
[1747880608136,127.86,173.86,173.76,6.7673666]
[1747880608331,0.04050345,173.83,173.79,0.04061945]
[1747880608533,0.04050345,173.83,173.8,5.752]
[1747880609237,0.04050345,173.83,173.81,5.7517]
[1747880609440,0.04050345,173.83,173.79,0.04061945]
[1747880610535,0.04050345,173.83,173.8,5.752]
[1747880610838,0.04050345,173.83,173.81,1.4382688]
[1747880611139,0.04050345,173.83,173.79,0.04061945]
[1747880611537,0.04050345,173.83,173.79,5.79291945]
[1747880612035,0.04050345,173.83,173.79,0.04061945]
[1747880613340,5.752,173.8,173.79,0.04061945]
[1747880613640,133.632,173.8,173.79,0.04061945]
[1747880614238,127.88,173.8,173.79,0.04061945]
[1747880614645,0.04050345,173.83,173.79,0.04061945]
[1747880615539,0.04050345,173.83,173.82,5.7514]
[1747880615744,624.8,173.91,173.81,6.7673666]
[1747880615943,624.8,173.91,173.81,134.6673666]
[1747880616649,624.8,173.91,173.84,0.04177618]
[1747880617142,127.9,173.91,173.84,0.04177618]
[1747880617647,127.9,173.91,173.86,5.75]
[1747880617847,127.9,173.91,173.87,1.43786422]
[1747880618441,497.0,173.99,173.87,1.43786422]
[1747880618647,127.9,173.97,173.91,0.03721062]
[1747880618843,133.6464,173.97,173.91,0.03721062]
[1747880619747,5.7468,173.96,173.91,0.03721062]
[1747880622246,133.6465,173.97,173.91,0.03721062]
[1747880622943,133.6465,173.97,173.91,5.78551062]
[1747880623147,127.9,173.97,173.91,0.03721062]
[1747880624547,5.7469,173.96,173.91,5.78561062]
[1747880624739,127.9,173.97,173.91,0.03721062]
[1747880625140,5.7468,173.96,173.91,0.03721062]
[1747880626754,5.7468,173.96,173.91,5.78551062]
[1747880626956,127.9,173.97,173.91,0.03721062]
[1747880627147,127.9,173.97,173.92,1.43756789]
[1747880627454,138.66175923,174.02,173.92,1.43756789]
[1747880627644,144.40655923,174.02,173.95,0.03764669]
[1747880627843,127.88,174.02,173.95,0.03764669]
[1747880628044,5.7455,174.0,173.95,0.03764669]
[1747880628250,127.88,174.02,173.95,0.03764669]
[1747880630351,5.7463,173.98,173.95,0.03764669]
[1747880631054,5.7464,173.97,173.95,0.03764669]
[1747880631350,127.88,174.02,173.95,0.03764669]
[1747880631553,5.7462,173.98,173.95,0.03764669]
[1747880632450,127.88,174.02,173.95,0.03764669]
[1747880633355,6.80496661,174.0,173.88,5.7493]
[1747880633556,116.0273666,174.0,173.83,134.6273666]
[1747880633848,109.26,174.0,173.91,5.7481]
[1747880634152,109.26,174.0,173.86,6.7673666]
[1747880634354,0.03764669,173.95,173.91,0.03948087]
[1747880634553,127.89764669,173.95,173.91,0.03948087]
[1747880634753,5.7479,173.93,173.91,0.03948087]
[1747880634951,127.89764669,173.95,173.91,0.03948087]
[1747880635155,5.7478,173.93,173.91,0.03948087]
[1747880635355,127.89764669,173.95,173.91,0.03948087]
[1747880635857,5.748,173.93,173.91,0.03948087]
[1747880636055,127.89764669,173.95,173.91,0.03948087]
[1747880637154,133.64494669,173.95,173.91,0.03948087]
[1747880637358,127.89764669,173.95,173.91,0.03948087]
[1747880638359,0.03764669,173.95,173.91,0.03948087]
[1747880638857,5.78484669,173.95,173.91,0.03948087]
[1747880639463,0.03764669,173.95,173.91,0.03948087]
[1747880640859,0.03764669,173.95,173.94,5.7474]
[1747880643964,183.46888034,174.05,173.97,5.7462]
[1747880644171,127.64,174.04,173.97,5.7462]
[1747880644464,133.3843,174.04,173.98,5.746]
[1747880645067,133.3843,174.04,173.99,0.03959216]
[1747880645361,127.64,174.04,173.99,0.03959216]
[1747880646065,133.3844,174.04,173.99,0.03959216]
[1747880646258,127.64,174.04,173.99,0.03959216]
[1747880647257,127.64,174.04,174.0,5.7454]
[1747880648562,6.7673666,174.12,173.99,0.03959216]
[1747880648563,624.52,174.08,173.99,0.03959216]
[1747880649065,127.62,174.08,174.04,5.7438]
[1747880649269,127.62,174.08,174.04,0.03724319]
[1747880649461,127.62,174.08,174.01,6.7673666]
[1747880649769,127.62,174.08,174.04,5.7439]
[1747880650262,127.62,174.11,174.01,6.7673666]
[1747880650472,0.03724319,174.08,174.04,0.04287072]
[1747880651061,0.03724319,174.08,174.06,5.7432]
[1747880651662,0.03724319,174.08,174.04,0.04287072]
[1747880651870,127.62,174.18,174.04,0.04287072]
[1747880652070,127.62,174.18,174.07,6.7673666]
[1747880652369,127.62,174.18,174.04,6.7673666]
[1747880652768,127.62,174.18,174.09,0.03896351]
[1747880653474,5.741,174.14,174.09,0.03896351]
[1747880653659,127.58,174.13,174.09,0.03896351]
[1747880653859,127.58,174.13,174.09,0.04245362]
[1747880654670,5.7421,174.1,174.09,0.04245362]
[1747880655168,5.7417,174.12,174.09,0.04245362]
[1747880655674,127.58,174.13,174.09,0.04245362]
[1747880655970,5.7421,174.11,174.09,0.04245362]
[1747880656170,127.58,174.13,174.09,0.04245362]
[1747880656367,5.7416,174.12,174.09,0.04245362]
[1747880657068,5.7418,174.11,174.09,0.04245362]
[1747880657570,5.7421,174.1,174.09,0.04245362]
[1747880658869,5.7419,174.11,174.09,0.04245362]
[1747880659372,127.58,174.13,174.09,0.04245362]
[1747880660273,5.7418,174.11,174.09,0.04245362]
[1747880660573,127.58,174.13,174.09,0.04245362]
[1747880660775,5.7421,174.11,174.09,0.04245362]
[1747880660971,127.58,174.13,174.09,0.04245362]
[1747880661967,127.58,174.13,174.09,5.78485362]
[1747880662174,127.56,174.18,174.09,0.04245362]
[1747880662375,127.56,174.18,174.12,0.04158947]
[1747880662675,5.7399,174.17,174.12,0.04158947]
[1747880662977,5.7404,174.16,174.12,0.04158947]
[1747880663777,133.2997,174.18,174.12,0.04158947]
[1747880663966,127.56,174.18,174.12,0.04158947]
[1747880664169,133.2995,174.18,174.12,0.04158947]
[1747880664471,127.56,174.22,174.12,0.04158947]
[1747880664672,127.56,174.22,174.15,0.03888955]
[1747880665072,10.77043493,174.2,174.15,0.03888955]
[1747880665478,127.56,174.22,174.15,0.03888955]
[1747880665977,5.7386,174.21,174.15,0.03888955]
[1747880666365,127.56,174.22,174.15,0.03888955]
[1747880667082,5.7386,174.21,174.15,5.77938955]
[1747880667778,5.7388,174.2,174.15,0.03888955]
[1747880667979,127.56,174.22,174.15,0.03888955]
[1747880668986,133.2982,174.22,174.17,5.7396]
[1747880669172,127.56,174.22,174.17,5.7396]
[1747880670080,127.56,174.22,174.15,0.03888955]
[1747880670284,127.56,174.22,174.16,1.43559159]
[1747880670585,127.56,174.22,174.17,5.7398]
[1747880670781,127.38,174.27,174.15,127.41888955]
[1747880670982,127.36,174.26,174.19,0.0408367]
[1747880671187,127.36,174.26,174.21,0.04141939]
[1747880672786,5.7381,174.23,174.21,0.04141939]
[1747880673195,127.36,174.26,174.21,0.04141939]
[1747880673391,5.7382,174.22,174.21,0.04141939]
[1747880673784,127.36,174.26,174.21,0.04141939]
[1747880674089,5.7381,174.23,174.21,0.04141939]
[1747880674390,127.36,174.26,174.21,0.04141939]
[1747880676691,5.7382,174.22,174.21,0.04141939]
[1747880676896,127.36,174.26,174.11,127.32]
[1747880677196,6.7673666,174.24,174.11,127.32]
[1747880677795,5.7395,174.18,174.16,0.03764557]
[1747880678195,0.0414194,174.19,174.16,0.03764557]
[1747880678392,5.7395,174.18,174.16,0.03764557]
[1747880679702,5.7398,174.17,174.16,0.03764557]
[1747880680698,0.0414194,174.19,174.16,0.03764557]
[1747880681296,5.7395,174.18,174.16,0.03764557]
[1747880681895,5.7398,174.17,174.16,0.03764557]
[1747880683603,0.0414194,174.19,174.16,0.03764557]
[1747880684002,5.7398,174.17,174.16,0.03764557]
[1747880684801,5.7396,174.18,174.16,0.03764557]
[1747880685001,0.0414194,174.19,174.16,0.03764557]
[1747880685502,0.0414194,174.19,174.16,1.47330024]
[1747880685700,5.7808194,174.19,174.16,1.47330024]
[1747880686401,5.7398,174.17,174.16,1.47330024]
[1747880686697,0.0414194,174.19,174.16,0.03764557]
[1747880687401,0.0414194,174.19,174.18,5.7395]
[1747880688302,0.0414194,174.19,174.16,0.03764557]
[1747880688694,0.0414194,174.19,174.17,6.7673666]
[1747880689204,0.0414194,174.19,174.18,5.7395]
[1747880690412,127.32,174.28,174.2,5.7387]
[1747880690707,127.32,174.28,174.16,127.32]
[1747880690907,5.7371,174.26,174.16,127.32]
[1747880691108,127.32,174.28,174.16,127.32]
[1747880691405,5.7379,174.23,174.2,0.04269819]
[1747880693509,127.32,174.28,174.2,0.04269819]
[1747880694210,127.32,174.28,174.23,5.7378]
[1747880694400,127.32,174.28,174.24,0.03799878]
[1747880694608,127.32,174.28,174.24,0.04134179]
[1747880695606,5.7365,174.27,174.24,0.04134179]
[1747880696205,127.32,174.28,174.24,0.04134179]
[1747880698613,133.0565,174.28,174.24,0.04134179]
[1747880699213,127.32,174.28,174.24,0.04134179]
[1747880699809,127.32,174.28,174.24,5.77874179]
[1747880700113,127.32,174.28,174.25,1.43493994]
[1747880700310,133.0563,174.28,174.25,1.43493994]
[1747880700514,127.32,174.28,174.24,0.04134179]
[1747880701616,133.0562,174.28,174.24,0.04134179]
[1747880702311,127.32,174.28,174.24,5.77884179]
[1747880702511,127.32,174.28,174.24,0.04134179]
[1747880703318,127.32,174.28,174.24,5.77854179]
[1747880704614,127.32,174.28,174.25,5.7371]
[1747880705117,127.32,174.28,174.25,1.43483646]
[1747880705816,127.32,174.28,174.24,0.04134179]
[1747880706017,133.0563,174.28,174.24,0.04134179]
[1747880707114,127.32,174.28,174.24,0.04134179]
[1747880707415,127.32,174.28,174.24,5.77884179]
[1747880707613,5.7367,174.27,174.24,0.04134179]
[1747880708211,5.7371,174.26,174.24,0.04134179]
[1747880709011,5.7366,174.27,174.24,0.04134179]
[1747880709214,127.32,174.28,174.24,0.04134179]
[1747880709514,133.0565,174.28,174.24,0.04134179]
[1747880711116,5.7365,174.27,174.24,0.04134179]
[1747880712016,5.7365,174.27,174.24,5.77874179]
[1747880713109,127.32,174.28,174.24,0.04134179]
[1747880714215,5.7368,174.27,174.24,0.04134179]
[1747880714418,127.32,174.28,174.24,0.04134179]
[1747880714815,5.7371,174.26,174.24,0.04134179]
[1747880715316,127.32,174.28,174.24,0.04134179]
[1747880715918,5.7366,174.27,174.24,0.04134179]
[1747880716120,127.32,174.28,174.24,0.04134179]
[1747880717920,5.7372,174.26,174.24,0.04134179]
[1747880718223,127.32,174.28,174.24,0.04134179]
[1747880718721,5.7372,174.25,174.24,0.04134179]
[1747880719022,127.32,174.28,174.24,0.04134179]
[1747880719320,5.7366,174.27,174.24,0.04134179]
[1747880719521,127.32,174.28,174.24,0.04134179]
[1747880720022,5.7372,174.25,174.24,0.04134179]
[1747880724525,127.32,174.28,174.12,6.7673666]
[1747880724722,5.7394,174.19,174.12,6.7673666]
[1747880725215,5.7395,174.18,174.14,5.7408]
[1747880725731,0.04098731,174.18,174.14,0.04313777]
[1747880727019,5.7405,174.15,174.14,0.04313777]
[1747880727224,5.7405,174.15,174.06,133.34172972]
[1747880727225,127.42,174.15,174.06,133.34172972]
[1747880727625,5.742,174.11,174.02,127.42]
[1747880727815,5.742,174.11,174.02,134.1873666]
[1747880728018,127.42,174.15,174.02,127.42]
[1747880728226,0.03897225,174.1,174.07,5.78002038]
[1747880728426,0.03897225,174.1,174.07,0.03692038]
[1747880729322,0.03897225,174.1,174.09,5.7425]
[1747880730524,0.03897225,174.1,174.08,5.7427]
[1747880731025,0.03897225,174.1,174.07,0.03692038]
[1747880731323,0.03897225,174.1,174.09,5.7425]
[1747880731727,127.42,174.15,174.07,0.03692038]
[1747880732024,127.32,174.17,174.07,127.35692038]
[1747880732224,127.32,174.17,174.12,5.7412]
[1747880732419,127.32,174.17,174.09,6.7673666]
[1747880732727,0.03935909,174.15,174.11,0.04411138]
[1747880732917,0.03935909,174.15,174.13,5.7411]
[1747880733426,0.03935909,174.15,174.14,5.7408]
[1747880735127,0.03935909,174.15,174.13,5.7411]
[1747880736027,0.03935909,174.15,174.12,5.7414]
[1747880736526,0.03935909,174.15,174.11,0.04411138]
[1747880737122,0.03935909,174.15,174.11,5.78581138]
[1747880737328,0.03935909,174.15,174.11,0.04411138]
[1747880737825,0.03935909,174.15,174.12,5.7412]
[1747880738828,0.03935909,174.15,174.11,5.78591138]
[1747880739029,0.03935909,174.15,174.11,0.04411138]
[1747880739429,0.03935909,174.15,174.13,5.7411]
[1747880739831,0.03935909,174.15,174.11,0.04411138]
[1747880740629,0.03935909,174.15,174.11,5.78581138]
[1747880741732,0.03935909,174.15,174.12,5.7414]
[1747880741932,0.03935909,174.15,174.11,0.04411138]
[1747880742231,0.03935909,174.15,174.12,5.7414]
[1747880743438,0.03935909,174.15,174.13,7.17690651]
[1747880743734,0.03935909,174.15,174.13,1.43580651]
[1747880743938,0.03935909,174.15,174.13,7.17670651]
[1747880744139,0.03935909,174.15,174.13,5.7409]
[1747880744436,0.03935909,174.15,174.14,5.7408]
[1747880745236,0.03935909,174.15,174.12,5.7412]
[1747880745641,0.03935909,174.15,174.11,0.04411138]
[1747880746135,127.34,174.14,174.08,1.94576814]
[1747880746336,127.34,174.14,174.12,0.97162665]
[1747880746535,127.34,174.14,174.1,1.29634048]
[1747880746741,5.7412,174.13,174.1,1.29634048]
[1747880747240,0.03825994,174.13,174.1,1.33669373]
[1747880747437,0.03825994,174.13,174.1,0.04035325]
[1747880748239,0.03825994,174.13,174.1,5.78245325]
[1747880748546,0.03825994,174.13,174.1,0.04035325]
[1747880748736,12.43936036,174.3,174.1,0.04035325]
[1747880748944,127.36,174.26,174.13,6.68158643]
[1747880749141,5.7379,174.23,174.13,6.68158643]
[1747880749342,127.36,174.26,174.13,6.68158643]
[1747880749644,127.36,174.26,174.21,5.7385]
[1747880749836,0.03828142,174.25,174.22,0.04310272]
[1747880753048,0.03828142,174.25,174.23,1.43515323]
[1747880753541,5.77548142,174.25,174.23,1.43515323]
[1747880754048,5.77548142,174.25,174.22,0.04310272]
[1747880754747,0.03828142,174.25,174.22,0.04310272]
[1747880758650,5.77548142,174.25,174.22,0.04310272]
[1747880758953,0.03828142,174.25,174.22,0.04310272]
[1747880759151,5.7377,174.24,174.22,0.04310272]
[1747880760450,5.7377,174.24,174.23,1.43516039]
[1747880761249,5.7377,174.24,174.23,6.039e-05]
[1747880761457,0.03828142,174.25,174.17,1.2917719]
[1747880761754,0.03828142,174.25,174.12,137.16158643]
[1747880761954,5.7392,174.2,174.12,137.16158643]
[1747880762149,136.2192,174.2,174.12,137.16158643]
[1747880762350,136.2192,174.2,174.14,5.78190445]
[1747880762351,0.04384741,174.18,174.14,5.78190445]
[1747880762843,496.24,174.31,174.15,6.68158643]
[1747880763048,130.48,174.3,174.18,6.68158643]
[1747880763547,130.48,174.3,174.19,5.7391]
[1747880763947,0.03813724,174.26,174.23,0.03754015]
[1747880764147,0.03813724,174.26,174.23,0.03970062]
[1747880764556,0.03813724,174.26,174.23,5.77750062]
[1747880764751,0.03813724,174.26,174.23,0.03970062]
[1747880764955,0.03813724,174.26,174.24,5.7373]
[1747880765449,130.48,174.3,174.27,5.7364]
[1747880765953,130.48,174.3,174.23,6.68158643]
[1747880766152,130.48,174.34,174.22,130.48]
[1747880766354,130.48,174.34,174.23,6.68158643]
[1747880766553,5.7355,174.31,174.27,0.04337571]
[1747880767958,5.7356,174.3,174.27,0.04337571]
[1747880768258,130.48,174.34,174.27,0.04337571]
[1747880768661,5.7349,174.32,174.27,0.04337571]
[1747880769163,136.2145,174.34,174.27,0.04337571]
[1747880769462,130.48,174.34,174.27,5.77987571]
[1747880770161,130.48,174.34,174.27,0.04337571]
[1747880770752,5.7349,174.32,174.27,0.04337571]
[1747880771559,5.7349,174.32,174.27,5.77987571]
[1747880771759,5.7346,174.33,174.27,0.04337571]
[1747880771957,626.54,174.39,174.27,137.16496214]
[1747880772157,5.734,174.35,174.31,0.04031464]
[1747880772561,626.54,174.39,174.31,0.04031464]
[1747880772761,5.7335,174.37,174.31,0.04031464]
[1747880773356,5.7339,174.35,174.31,0.04031464]
[1747880773556,130.42,174.39,174.31,0.04031464]
[1747880773757,5.7332,174.38,174.31,0.04031464]
[1747880773962,130.42,174.39,174.31,0.04031464]
[1747880774765,130.42,174.39,174.31,5.77551464]
[1747880775363,5.7335,174.37,174.32,5.7349]
[1747880775662,130.42,174.39,174.32,5.7349]
[1747880775964,130.42,174.39,174.32,7.16900901]
[1747880776153,130.42,174.39,174.32,5.7349]
[1747880776354,5.7332,174.38,174.32,5.7349]
[1747880776759,130.42,174.39,174.32,5.7349]
[1747880777065,130.42,174.39,174.31,5.77541464]
[1747880777264,130.42,174.39,174.31,0.04031464]
[1747880777861,130.42,174.39,174.32,1.43409768]
[1747880778565,136.1527,174.39,174.34,5.734]
[1747880778766,136.1527,174.39,174.35,0.04370704]
[1747880779064,130.42,174.39,174.35,0.04370704]
[1747880779368,130.42,174.39,174.35,5.77760704]
[1747880779574,130.42,174.39,174.35,0.04370704]
[1747880779964,5.7332,174.38,174.35,0.04370704]
[1747880780466,5.7332,174.38,174.36,1.43405288]
[1747880780767,130.42,174.39,174.36,1.43405288]
[1747880780967,130.42,174.39,174.35,0.04370704]
[1747880781470,183.14931413,174.4,174.35,0.04370704]
[1747880782567,188.88181413,174.4,174.35,5.77760704]
[1747880783665,183.14931413,174.4,174.35,0.04370704]
[1747880784467,130.4,174.43,174.35,0.04370704]
[1747880784969,5.7321,174.41,174.36,5.7333]
[1747880785172,130.4,174.43,174.35,0.04370704]
[1747880785670,5.7322,174.41,174.36,5.7335]
[1747880785860,130.4,174.43,174.37,1.43384342]
[1747880786260,6.68158643,174.42,174.37,1.43384342]
[1747880786775,5.7329,174.38,174.37,1.43384342]
[1747880786964,130.38,174.38,174.37,1.43384342]
[1747880787267,130.38,174.38,174.35,0.04370704]
[1747880790574,129.04,174.4,174.35,0.04370704]
[1747880793775,5.7327,174.39,174.35,0.04370704]
[1747880793974,129.04,174.4,174.35,0.04370704]
[1747880794774,134.7725,174.4,174.35,0.04370704]
[1747880794973,129.04,174.4,174.35,0.04370704]
[1747880795581,129.04,174.4,174.35,5.77750704]
[1747880797181,129.04,174.4,174.35,0.04370704]
[1747880798883,129.04,174.4,174.35,5.77740704]
[1747880800386,129.04,174.4,174.37,5.7332]
[1747880800589,129.04,174.4,174.35,0.04370704]
[1747880800984,129.04,174.4,174.35,5.77750704]
[1747880803889,129.04,174.4,174.35,0.04370704]
[1747880804389,129.04,174.4,174.36,5.7333]
[1747880804690,129.04,174.4,174.35,0.04370704]
[1747880804987,129.04,174.4,174.35,5.77750704]
[1747880805289,129.04,174.4,174.35,0.04370704]
[1747880805493,129.04,174.4,174.36,5.7335]
[1747880805794,129.04,174.43,174.35,0.04370704]
[1747880806490,129.04,174.43,174.35,6.72529347]
[1747880806796,129.04,174.43,174.38,5.7327]
[1747880806988,129.04,174.43,174.39,0.04051513]
[1747880807801,678.9193879,174.47,174.42,5.7316]
[1747880808095,129.02,174.46,174.43,0.04121969]
[1747880809795,129.02,174.46,174.43,5.77221969]
[1747880809992,129.02,174.46,174.43,0.04121969]
[1747880812496,183.0193879,174.47,174.44,5.7309]
[1747880812808,183.0193879,174.47,174.43,0.04121969]
[1747880812996,183.0193879,174.47,174.44,5.7306]
[1747880813195,183.0193879,174.47,174.43,0.04121969]
[1747880813398,129.0,174.51,174.43,0.04121969]
[1747880813598,129.0,174.51,174.44,6.68158643]
[1747880813795,495.58,174.55,174.44,6.68158643]
[1747880814100,129.0,174.59,174.5,6.68158643]
[1747880814298,502.22158643,174.64,174.53,0.04380931]
[1747880814494,502.22158643,174.64,174.5,6.68158643]
[1747880814495,129.0,174.63,174.57,0.04243738]
[1747880814800,128.98,174.62,174.57,0.04243738]
[1747880814991,502.22158643,174.64,174.57,0.04243738]
[1747880815198,128.98,174.63,174.57,0.04243738]
[1747880816203,6.68158643,174.62,174.48,6.68158643]
[1747880816399,6.68158643,174.62,174.46,6.68158643]
[1747880816602,5.7261,174.59,174.49,6.68158643]
[1747880816806,502.22158643,174.64,174.49,6.68158643]
[1747880817006,502.22158643,174.64,174.5,128.98]
[1747880817304,0.04064771,174.59,174.55,0.039981]
[1747880817799,0.04064771,174.59,174.57,5.7264]
[1747880818003,0.04064771,174.59,174.55,0.039981]
[1747880818807,0.04064771,174.59,174.56,5.7267]
[1747880819205,0.04064771,174.59,174.55,0.039981]
[1747880819500,0.04064771,174.59,174.58,5.7263]
[1747880820107,0.04064771,174.59,174.56,6.68158643]
[1747880821406,0.04064771,174.59,174.55,0.039981]
[1747880822006,6.72223414,174.59,174.55,0.039981]
[1747880822308,0.04064771,174.59,174.55,0.039981]
[1747880822711,5.7267,174.57,174.56,1.43225946]
[1747880823210,0.04064771,174.59,174.55,0.039981]
[1747880823406,5.727,174.56,174.55,0.039981]
[1747880824111,5.7283,174.52,174.43,127.3]
[1747880824305,127.3,174.53,174.42,9.85168668]
[1747880824507,127.3,174.52,174.45,5.7303]
[1747880824704,133.0285,174.52,174.45,5.7303]
[1747880824907,127.3,174.52,174.46,5.7302]
[1747880825114,0.03751744,174.5,174.47,0.03631311]
[1747880830509,5.7293,174.49,174.47,0.03631311]
[1747880832014,5.76651744,174.5,174.47,0.03631311]
[1747880832610,5.7294,174.49,174.47,0.03631311]
[1747880834912,0.03751744,174.5,174.47,0.03631311]
[1747880835109,5.76661744,174.5,174.47,0.03631311]
[1747880835317,0.03751744,174.5,174.47,0.03631311]
[1747880835513,5.76671744,174.5,174.47,0.03631311]
[1747880836519,5.7293,174.49,174.47,0.03631311]
[1747880837316,0.03751744,174.5,174.47,0.03631311]
[1747880837822,5.7296,174.48,174.47,0.03631311]
[1747880838210,15.59168668,174.48,174.29,9.85168668]
[1747880838411,9.85168668,174.46,174.28,260.52575642]
[1747880838620,5.7327,174.39,174.28,260.52575642]
[1747880838817,127.34,174.38,174.28,260.52575642]
[1747880839215,0.03828005,174.35,174.31,0.04314111]
[1747880840018,0.03828005,174.35,174.34,5.7342]
[1747880841724,0.03828005,174.35,174.33,5.7345]
[1747880841925,0.03828005,174.35,174.31,0.04314111]
[1747880843225,5.77248005,174.35,174.31,5.77834111]
[1747880843723,0.03828005,174.35,174.31,5.77834111]
[1747880843921,0.03828005,174.35,174.31,0.04314111]
[1747880844626,5.7343,174.34,174.31,0.04314111]
[1747880845325,5.77248005,174.35,174.31,0.04314111]
[1747880845620,0.03828005,174.35,174.31,0.04314111]
[1747880846420,5.7349,174.32,174.31,0.04314111]
[1747880846620,133.1149,174.32,174.31,0.04314111]
[1747880847324,127.38,174.32,174.31,0.04314111]
[1747880849328,127.38,174.32,174.31,5.77834111]
[1747880850929,0.03828005,174.35,174.31,0.04314111]
[1747880852031,0.03828005,174.35,174.34,5.7342]
[1747880852330,0.03828005,174.35,174.31,0.04314111]
[1747880852331,127.38,174.41,174.32,6.66382823]
[1747880852532,127.38,174.41,174.38,5.7327]
[1747880853433,127.41725697,174.41,174.38,5.77014891]
[1747880854131,127.41725697,174.41,174.39,5.7324]
[1747880854331,127.41725697,174.41,174.38,0.03744891]
[1747880855038,0.03725697,174.41,174.4,5.7323]
[1747880855434,90.78284576,174.66,174.4,6.66382823]
[1747880855634,622.98,174.63,174.5,5.7289]
[1747880855829,127.38,174.62,174.46,6.66382823]
[1747880856031,127.38,174.62,174.49,6.66382823]
[1747880856335,127.38,174.62,174.56,5.727]
[1747880856529,0.03779308,174.61,174.57,0.03887518]
[1747880856925,17.92000661,174.59,174.57,0.03887518]